[Event "*** Titled Tuesday Blitz"]
[Site "Chess.com"]
[Date "2020.05.12"]
[Round "4"]
[White "SirMittensofMittensville"]
[Black "Duong57"]
[Result "1-0"]
[WhiteElo "2573"]
[BlackElo "2261"]
[TimeControl "180+1"]
[EndTime "10:36:03 PDT"]
[Termination "SirMittensofMittensville won by checkmate"]

1. e4 {[%clk 0:03:00.9]} 1... c5 {[%clk 0:02:58.8]} 2. c3 {[%clk 0:02:59.6]}
2... Nf6 {[%clk 0:02:55]} 3. e5 {[%clk 0:02:59.9]} 3... Nd5 {[%clk 0:02:54.7]}
4. Bc4 {[%clk 0:03:00.8]} 4... e6 {[%clk 0:02:48.1]} 5. Nf3 {[%clk 0:02:59.6]}
5... d6 {[%clk 0:02:46.9]} 6. d4 {[%clk 0:03:00.1]} 6... cxd4 {[%clk 0:02:42]}
7. cxd4 {[%clk 0:03:01]} 7... Nc6 {[%clk 0:02:37.3]} 8. Qe2 {[%clk 0:03:01.4]}
8... dxe5 {[%clk 0:02:32.4]} 9. dxe5 {[%clk 0:03:01.1]} 9... Bb4+ {[%clk
0:02:26.6]} 10. Nbd2 {[%clk 0:02:59.7]} 10... O-O {[%clk 0:02:24.5]} 11. O-O
{[%clk 0:02:58.7]} 11... a6 {[%clk 0:02:23.8]} 12. Qe4 {[%clk 0:02:58]} 12... b5
{[%clk 0:01:58.7]} 13. Bd3 {[%clk 0:02:57.1]} 13... g6 {[%clk 0:01:59.1]} 14.
Bc2 {[%clk 0:02:48.2]} 14... Bb7 {[%clk 0:01:58.2]} 15. Nb3 {[%clk 0:02:36.2]}
15... Qb6 {[%clk 0:01:54.2]} 16. Bh6 {[%clk 0:02:34.3]} 16... Rfd8 {[%clk
0:01:51.9]} 17. Qg4 {[%clk 0:02:33.7]} 17... Bf8 {[%clk 0:01:22.2]} 18. Bxf8
{[%clk 0:02:32.8]} 18... Kxf8 {[%clk 0:01:22.7]} 19. Qh4 {[%clk 0:02:15.4]}
19... h5 {[%clk 0:01:16.1]} 20. Qg5 {[%clk 0:02:12.5]} 20... Nde7 {[%clk
0:01:10.9]} 21. Qh6+ {[%clk 0:02:08.3]} 21... Ke8 {[%clk 0:01:10.1]} 22. Rad1
{[%clk 0:02:01.9]} 22... Ng8 {[%clk 0:01:09.2]} 23. Qg7 {[%clk 0:01:59.9]} 23...
Ke7 {[%clk 0:01:09.5]} 24. Bxg6 {[%clk 0:01:58.5]} 24... Rf8 {[%clk 0:01:06.9]}
25. Ng5 {[%clk 0:01:49.3]} 25... Nxe5 {[%clk 0:01:02.2]} 26. Qxe5 {[%clk
0:01:45]} 26... fxg6 {[%clk 0:01:01.9]} 27. Qg7+ {[%clk 0:01:42.3]} 27... Ke8
{[%clk 0:00:55.5]} 28. Qd7# {[%clk 0:01:43.2]} 1-0

[Event "*** Titled Tuesday Blitz"]
[Site "Chess.com"]
[Date "2020.05.12"]
[Round "4"]
[White "JozefKneht"]
[Black "ALeks_Ivlev"]
[Result "0-1"]
[WhiteElo "2369"]
[BlackElo "2595"]
[TimeControl "180+1"]
[EndTime "10:36:03 PDT"]
[Termination "ALeks_Ivlev won by resignation"]

1. e4 {[%clk 0:02:56]} 1... c5 {[%clk 0:02:59.9]} 2. Nf3 {[%clk 0:02:55.5]} 2...
d6 {[%clk 0:03:00.1]} 3. d4 {[%clk 0:02:55.7]} 3... cxd4 {[%clk 0:03:00.9]} 4.
Nxd4 {[%clk 0:02:56.5]} 4... Nf6 {[%clk 0:03:01.7]} 5. Nc3 {[%clk 0:02:57]} 5...
g6 {[%clk 0:03:01.6]} 6. Be3 {[%clk 0:02:56.9]} 6... Bg7 {[%clk 0:03:01.9]} 7.
f3 {[%clk 0:02:57.8]} 7... O-O {[%clk 0:03:02.1]} 8. Qd2 {[%clk 0:02:58.7]} 8...
a6 {[%clk 0:02:57.2]} 9. O-O-O {[%clk 0:02:59.6]} 9... b5 {[%clk 0:02:55.8]} 10.
Kb1 {[%clk 0:02:59.6]} 10... Bb7 {[%clk 0:02:55.1]} 11. h4 {[%clk 0:02:59.1]}
11... h5 {[%clk 0:02:55.3]} 12. Bg5 {[%clk 0:02:57.2]} 12... Nbd7 {[%clk
0:02:54.7]} 13. Be2 {[%clk 0:02:57.1]} 13... Rc8 {[%clk 0:02:54.5]} 14. Nb3
{[%clk 0:02:46]} 14... b4 {[%clk 0:02:42.5]} 15. Nd5 {[%clk 0:02:45.3]} 15...
Bxd5 {[%clk 0:02:40.1]} 16. exd5 {[%clk 0:02:44.8]} 16... a5 {[%clk 0:02:39.6]}
17. Bb5 {[%clk 0:02:18]} 17... Ne5 {[%clk 0:02:35.6]} 18. Rhe1 {[%clk
0:01:45.4]} 18... Qb6 {[%clk 0:02:25.6]} 19. Ba4 {[%clk 0:01:33.1]} 19... Nc4
{[%clk 0:02:23.1]} 20. Qe2 {[%clk 0:01:32.4]} 20... Nxb2 {[%clk 0:02:21.5]} 21.
Kxb2 {[%clk 0:01:26.1]} 21... Nxd5+ {[%clk 0:02:19.6]} 22. Kc1 {[%clk
0:01:25.7]} 22... Nc3 {[%clk 0:02:19.5]} 23. Qxe7 {[%clk 0:01:23.3]} 23... Nxa2+
{[%clk 0:02:18]} 24. Kb1 {[%clk 0:01:16.5]} 24... Nc3+ {[%clk 0:02:17.7]} 25.
Kc1 {[%clk 0:01:16.8]} 25... Nxa4 {[%clk 0:02:16.5]} 26. Rxd6 {[%clk 0:01:13.4]}
26... Qb5 {[%clk 0:02:00.2]} 27. Bf6 {[%clk 0:01:11]} 27... Qc4 {[%clk
0:01:58.1]} 28. Rd2 {[%clk 0:01:02.7]} 28... Qxb3 {[%clk 0:01:56.2]} 29. Bxg7
{[%clk 0:01:00.9]} 29... Kxg7 {[%clk 0:01:53.6]} 0-1

[Event "*** Titled Tuesday Blitz"]
[Site "Chess.com"]
[Date "2020.05.12"]
[Round "4"]
[White "ezkybel"]
[Black "A-Fier"]
[Result "0-1"]
[WhiteElo "2511"]
[BlackElo "2765"]
[TimeControl "180+1"]
[EndTime "10:36:13 PDT"]
[Termination "A-Fier won by resignation"]

1. e4 {[%clk 0:03:00.9]} 1... c5 {[%clk 0:02:59.4]} 2. Nf3 {[%clk 0:03:00.5]}
2... e6 {[%clk 0:02:58.3]} 3. b3 {[%clk 0:02:58.9]} 3... Nc6 {[%clk 0:02:57.6]}
4. Bb2 {[%clk 0:02:58.2]} 4... a6 {[%clk 0:02:58.2]} 5. c4 {[%clk 0:02:53.9]}
5... Qc7 {[%clk 0:02:57.8]} 6. Nc3 {[%clk 0:02:53.6]} 6... Nf6 {[%clk
0:02:56.2]} 7. Bd3 {[%clk 0:02:53.2]} 7... Bd6 {[%clk 0:02:53.5]} 8. O-O {[%clk
0:02:51.6]} 8... g5 {[%clk 0:02:50.5]} 9. Nd5 {[%clk 0:02:29.1]} 9... exd5
{[%clk 0:02:44.4]} 10. Bxf6 {[%clk 0:02:26.9]} 10... dxc4 {[%clk 0:02:44.7]} 11.
Bxc4 {[%clk 0:02:25.7]} 11... Rg8 {[%clk 0:02:44.6]} 12. Nxg5 {[%clk 0:02:24.7]}
12... Ne5 {[%clk 0:02:44.4]} 13. Qh5 {[%clk 0:02:22.4]} 13... Rxg5 {[%clk
0:02:17.9]} 14. Qxg5 {[%clk 0:02:19.1]} 14... Nxc4 {[%clk 0:02:14.9]} 15. Qg8+
{[%clk 0:02:15.7]} 15... Bf8 {[%clk 0:02:14.5]} 16. Bg7 {[%clk 0:02:14.6]} 16...
Qd6 {[%clk 0:02:14.3]} 17. bxc4 {[%clk 0:02:11.4]} 17... b6 {[%clk 0:02:14.4]}
18. d4 {[%clk 0:02:02.7]} 18... cxd4 {[%clk 0:02:13.8]} 19. Rad1 {[%clk
0:02:00.9]} 19... Bb7 {[%clk 0:02:12.3]} 20. Rxd4 {[%clk 0:01:58.9]} 20... Qe7
{[%clk 0:02:12.8]} 21. Bxf8 {[%clk 0:01:23.5]} 21... Qxf8 {[%clk 0:02:13.7]} 22.
Qxf8+ {[%clk 0:01:22.9]} 22... Kxf8 {[%clk 0:02:14.6]} 23. Rxd7 {[%clk
0:01:17.6]} 23... Bxe4 {[%clk 0:02:15]} 24. Re1 {[%clk 0:01:14.6]} 24... Bf5
{[%clk 0:02:13.5]} 25. Rb7 {[%clk 0:01:12.8]} 25... Be6 {[%clk 0:02:13.7]} 26.
Rxb6 {[%clk 0:01:12]} 26... Bxc4 {[%clk 0:02:13.6]} 27. a4 {[%clk 0:01:09]}
27... Kg7 {[%clk 0:02:13.4]} 28. h3 {[%clk 0:01:09.2]} 28... Rd8 {[%clk
0:02:13.4]} 29. Re4 {[%clk 0:01:05.4]} 29... Bd3 {[%clk 0:02:12.5]} 30. Rg4+
{[%clk 0:01:04.9]} 30... Kf8 {[%clk 0:02:12.9]} 31. Kh2 {[%clk 0:01:02.5]} 31...
Rd5 {[%clk 0:02:12.6]} 32. Rb8+ {[%clk 0:00:50.9]} 32... Ke7 {[%clk 0:02:12.5]}
33. Rf4 {[%clk 0:00:50.1]} 33... Rd7 {[%clk 0:02:06.4]} 34. h4 {[%clk
0:00:50.2]} 34... h5 {[%clk 0:02:05.7]} 35. Rc8 {[%clk 0:00:49]} 35... Bg6
{[%clk 0:02:02.4]} 36. Rc7 {[%clk 0:00:48.2]} 36... Rxc7 {[%clk 0:02:02.4]} 0-1

[Event "*** Titled Tuesday Blitz"]
[Site "Chess.com"]
[Date "2020.05.12"]
[Round "4"]
[White "OK97"]
[Black "Mfcyryd"]
[Result "1/2-1/2"]
[WhiteElo "2768"]
[BlackElo "2566"]
[TimeControl "180+1"]
[EndTime "10:36:19 PDT"]
[Termination "Game drawn by agreement"]

1. e4 {[%clk 0:03:00.9]} 1... c6 {[%clk 0:02:59.7]} 2. d4 {[%clk 0:03:00.5]}
2... d5 {[%clk 0:03:00.6]} 3. e5 {[%clk 0:03:00.9]} 3... Bf5 {[%clk 0:03:00.1]}
4. h4 {[%clk 0:03:01]} 4... h6 {[%clk 0:02:59.2]} 5. g4 {[%clk 0:03:00.4]} 5...
Bc8 {[%clk 0:02:59]} 6. h5 {[%clk 0:02:55.3]} 6... c5 {[%clk 0:02:58.7]} 7. dxc5
{[%clk 0:02:43]} 7... Nc6 {[%clk 0:02:57.3]} 8. f4 {[%clk 0:02:38.9]} 8... Qa5+
{[%clk 0:02:47.8]} 9. c3 {[%clk 0:02:36]} 9... Qxc5 {[%clk 0:02:48.7]} 10. Bg2
{[%clk 0:01:48.3]} 10... d4 {[%clk 0:02:41.5]} 11. b4 {[%clk 0:01:34.4]} 11...
Qb6 {[%clk 0:02:39.8]} 12. a3 {[%clk 0:01:32.6]} 12... a5 {[%clk 0:02:27.3]} 13.
Qa4 {[%clk 0:01:09]} 13... Bxg4 {[%clk 0:02:23.3]} 14. b5 {[%clk 0:00:59.6]}
14... Na7 {[%clk 0:02:16.8]} 15. cxd4 {[%clk 0:00:59.2]} 15... Rd8 {[%clk
0:02:06.1]} 16. Be3 {[%clk 0:00:53.5]} 16... Bd7 {[%clk 0:01:59.8]} 17. Nd2
{[%clk 0:00:43]} 17... Bxb5 {[%clk 0:01:53.6]} 18. Qc2 {[%clk 0:00:32.3]} 18...
e6 {[%clk 0:01:51.5]} 19. Rb1 {[%clk 0:00:20.3]} 1/2-1/2

[Event "*** Titled Tuesday Blitz"]
[Site "Chess.com"]
[Date "2020.05.12"]
[Round "4"]
[White "TST2014"]
[Black "vugarrasulov"]
[Result "1-0"]
[WhiteElo "2594"]
[BlackElo "2778"]
[TimeControl "180+1"]
[EndTime "10:36:24 PDT"]
[Termination "TST2014 won by resignation"]

1. d4 {[%clk 0:03:00.8]} 1... Nf6 {[%clk 0:03:00]} 2. c4 {[%clk 0:02:59.3]} 2...
e6 {[%clk 0:02:59.5]} 3. Nf3 {[%clk 0:02:59.1]} 3... b6 {[%clk 0:02:59.1]} 4. a3
{[%clk 0:02:58.9]} 4... c5 {[%clk 0:02:58.1]} 5. d5 {[%clk 0:02:56.7]} 5... Ba6
{[%clk 0:02:58.6]} 6. Qc2 {[%clk 0:02:53.5]} 6... exd5 {[%clk 0:02:58.7]} 7.
cxd5 {[%clk 0:02:53.6]} 7... d6 {[%clk 0:02:59.3]} 8. Nc3 {[%clk 0:02:53.5]}
8... g6 {[%clk 0:02:59.4]} 9. e4 {[%clk 0:02:51.4]} 9... Bxf1 {[%clk 0:02:57.9]}
10. Kxf1 {[%clk 0:02:51.6]} 10... Bg7 {[%clk 0:02:58.4]} 11. g3 {[%clk
0:02:48.5]} 11... O-O {[%clk 0:02:58.7]} 12. Kg1 {[%clk 0:02:48.8]} 12... Re8
{[%clk 0:02:56.4]} 13. Kg2 {[%clk 0:02:46.6]} 13... Ng4 {[%clk 0:02:55.9]} 14.
Bg5 {[%clk 0:02:41.9]} 14... Qd7 {[%clk 0:02:44.9]} 15. a4 {[%clk 0:02:33.9]}
15... Na6 {[%clk 0:02:43.2]} 16. h3 {[%clk 0:02:26]} 16... Nb4 {[%clk
0:02:41.3]} 17. Qd2 {[%clk 0:02:22]} 17... Ne5 {[%clk 0:02:40.3]} 18. Nxe5
{[%clk 0:02:19.2]} 18... Bxe5 {[%clk 0:02:41.2]} 19. Rhe1 {[%clk 0:02:11]} 19...
c4 {[%clk 0:02:33]} 20. Re2 {[%clk 0:01:58.2]} 20... a6 {[%clk 0:02:29.4]} 21.
Bf4 {[%clk 0:01:53.1]} 21... Bxf4 {[%clk 0:02:18.8]} 22. Qxf4 {[%clk 0:01:51.9]}
22... Nd3 {[%clk 0:02:18.8]} 23. Qe3 {[%clk 0:01:48.4]} 23... b5 {[%clk
0:02:14.5]} 24. axb5 {[%clk 0:01:28.8]} 24... axb5 {[%clk 0:02:15.4]} 25. Rxa8
{[%clk 0:01:28.9]} 25... Rxa8 {[%clk 0:02:15.9]} 26. Qb6 {[%clk 0:01:22.5]}
26... b4 {[%clk 0:02:15.9]} 27. Nb5 {[%clk 0:01:22.4]} 27... Ra1 {[%clk
0:02:00.2]} 28. Nxd6 {[%clk 0:01:13.9]} 28... Ne1+ {[%clk 0:01:59.6]} 29. Rxe1
{[%clk 0:01:13.8]} 29... Rxe1 {[%clk 0:01:58.8]} 30. Qb8+ {[%clk 0:01:12.9]}
30... Kg7 {[%clk 0:01:56.9]} 31. Ne8+ {[%clk 0:01:13.2]} 31... Kh6 {[%clk
0:01:39.1]} 32. Qf4+ {[%clk 0:01:11.1]} 1-0

[Event "*** Titled Tuesday Blitz"]
[Site "Chess.com"]
[Date "2020.05.12"]
[Round "4"]
[White "chegueps"]
[Black "chenrip"]
[Result "1/2-1/2"]
[WhiteElo "2501"]
[BlackElo "2331"]
[TimeControl "180+1"]
[EndTime "10:36:24 PDT"]
[Termination "Game drawn by repetition"]

1. g3 {[%clk 0:02:56.8]} 1... Nf6 {[%clk 0:02:58]} 2. f4 {[%clk 0:02:57.7]} 2...
g6 {[%clk 0:02:57.8]} 3. Bg2 {[%clk 0:02:58.6]} 3... Bg7 {[%clk 0:02:58.2]} 4.
d3 {[%clk 0:02:59.5]} 4... O-O {[%clk 0:02:58.2]} 5. Nd2 {[%clk 0:03:00.4]} 5...
d5 {[%clk 0:02:55.8]} 6. Ngf3 {[%clk 0:03:01.3]} 6... b5 {[%clk 0:02:55.5]} 7.
O-O {[%clk 0:03:02.2]} 7... Bb7 {[%clk 0:02:55.6]} 8. a4 {[%clk 0:03:02.6]} 8...
b4 {[%clk 0:02:55.4]} 9. Ne5 {[%clk 0:03:03.3]} 9... Nbd7 {[%clk 0:02:52.5]} 10.
Ndf3 {[%clk 0:03:03.3]} 10... c5 {[%clk 0:02:49.1]} 11. c3 {[%clk 0:03:02.2]}
11... a5 {[%clk 0:02:48.1]} 12. Bd2 {[%clk 0:03:01.1]} 12... Qb6 {[%clk
0:02:36.6]} 13. c4 {[%clk 0:03:00.2]} 13... d4 {[%clk 0:02:31.7]} 14. e4 {[%clk
0:02:56]} 14... dxe3 {[%clk 0:02:28]} 15. Bxe3 {[%clk 0:02:55.9]} 15... Rad8
{[%clk 0:02:26.6]} 16. Qe2 {[%clk 0:02:44.3]} 16... Nxe5 {[%clk 0:02:13.9]} 17.
Nxe5 {[%clk 0:02:45.2]} 17... Bxg2 {[%clk 0:02:08.1]} 18. Qxg2 {[%clk
0:02:46.1]} 18... Rd6 {[%clk 0:01:49.7]} 19. Qf2 {[%clk 0:02:44.3]} 19... Rc8
{[%clk 0:01:47.7]} 20. Rfe1 {[%clk 0:02:32.3]} 20... h5 {[%clk 0:01:38.3]} 21.
Rad1 {[%clk 0:02:26.8]} 21... Ng4 {[%clk 0:01:36.1]} 22. Nxg4 {[%clk 0:02:26.4]}
22... hxg4 {[%clk 0:01:36.1]} 23. b3 {[%clk 0:02:26.5]} 23... e6 {[%clk
0:01:31.8]} 24. Qe2 {[%clk 0:02:25.9]} 24... f5 {[%clk 0:01:22.4]} 25. Qf2
{[%clk 0:02:17.7]} 25... Kf7 {[%clk 0:01:18]} 26. Re2 {[%clk 0:02:14.7]} 26...
Qc6 {[%clk 0:01:10.4]} 27. d4 {[%clk 0:02:06.2]} 27... cxd4 {[%clk 0:01:10.1]}
28. Bxd4 {[%clk 0:01:53.8]} 28... Rcd8 {[%clk 0:01:07.9]} 29. Red2 {[%clk
0:01:41.8]} 29... Bxd4 {[%clk 0:01:07]} 30. Rxd4 {[%clk 0:01:42.7]} 30... Rxd4
{[%clk 0:01:07.1]} 31. Rxd4 {[%clk 0:01:43.6]} 31... Rxd4 {[%clk 0:01:06.7]} 32.
Qxd4 {[%clk 0:01:44.5]} 32... Qf3 {[%clk 0:01:06.8]} 33. Qd7+ {[%clk 0:01:42.8]}
33... Kf6 {[%clk 0:01:05.3]} 34. Qd8+ {[%clk 0:01:42.7]} 34... Kf7 {[%clk
0:01:05.4]} 35. Qd7+ {[%clk 0:01:43.1]} 35... Kf6 {[%clk 0:01:05.6]} 36. Qd8+
{[%clk 0:01:44]} 36... Kf7 {[%clk 0:01:05.9]} 37. Qd7+ {[%clk 0:01:44.8]}
1/2-1/2

[Event "*** Titled Tuesday Blitz"]
[Site "Chess.com"]
[Date "2020.05.12"]
[Round "4"]
[White "googlegoom"]
[Black "GreatOwl02"]
[Result "0-1"]
[WhiteElo "2539"]
[BlackElo "2348"]
[TimeControl "180+1"]
[EndTime "10:36:26 PDT"]
[Termination "GreatOwl02 won by resignation"]

1. Nf3 {[%clk 0:03:00.9]} 1... d5 {[%clk 0:02:59.4]} 2. b3 {[%clk 0:03:00.5]}
2... Nf6 {[%clk 0:02:58.5]} 3. Bb2 {[%clk 0:03:00.9]} 3... g6 {[%clk 0:02:58.9]}
4. e3 {[%clk 0:03:01.5]} 4... Bg7 {[%clk 0:02:59.3]} 5. Be2 {[%clk 0:03:02.4]}
5... O-O {[%clk 0:02:59.5]} 6. O-O {[%clk 0:03:03]} 6... c5 {[%clk 0:02:59.9]}
7. d4 {[%clk 0:03:03.9]} 7... b6 {[%clk 0:02:53]} 8. Nbd2 {[%clk 0:03:02.8]}
8... Bb7 {[%clk 0:02:53.3]} 9. c4 {[%clk 0:03:02.9]} 9... Nbd7 {[%clk
0:02:41.6]} 10. Rc1 {[%clk 0:03:01.6]} 10... e6 {[%clk 0:02:38]} 11. Rc2 {[%clk
0:03:01.2]} 11... Rc8 {[%clk 0:02:36.1]} 12. Qa1 {[%clk 0:03:01.4]} 12... Qe7
{[%clk 0:02:21.5]} 13. Rfc1 {[%clk 0:02:54.4]} 13... cxd4 {[%clk 0:02:19.2]} 14.
Nxd4 {[%clk 0:02:54.1]} 14... e5 {[%clk 0:02:05.6]} 15. Nb5 {[%clk 0:02:53.5]}
15... a6 {[%clk 0:02:03.8]} 16. Ba3 {[%clk 0:02:42.1]} 16... Nc5 {[%clk
0:02:03.1]} 17. Nc3 {[%clk 0:02:40.9]} 17... d4 {[%clk 0:01:52]} 18. Na4 {[%clk
0:02:33.6]} 18... dxe3 {[%clk 0:01:47.2]} 19. fxe3 {[%clk 0:02:33.7]} 19... Qc7
{[%clk 0:01:41.2]} 20. Nxc5 {[%clk 0:02:28.6]} 20... bxc5 {[%clk 0:01:41]} 21.
Bb2 {[%clk 0:02:28.4]} 21... Rfe8 {[%clk 0:01:38]} 22. Bf3 {[%clk 0:02:25.2]}
22... Bxf3 {[%clk 0:01:32.6]} 23. Nxf3 {[%clk 0:02:25.2]} 23... Ng4 {[%clk
0:01:32.5]} 24. Re1 {[%clk 0:02:16.7]} 24... Bh6 {[%clk 0:01:27.9]} 25. Rce2
{[%clk 0:02:08.8]} 25... e4 {[%clk 0:01:20.3]} 26. Qc1 {[%clk 0:01:26.5]} 26...
exf3 {[%clk 0:01:16]} 27. gxf3 {[%clk 0:01:26.7]} 27... Ne5 {[%clk 0:01:09]} 28.
Kg2 {[%clk 0:01:26.7]} 28... Nd3 {[%clk 0:01:08.4]} 29. Qc3 {[%clk 0:01:26.7]}
29... Nxe1+ {[%clk 0:01:07.9]} 30. Rxe1 {[%clk 0:01:24.6]} 30... f6 {[%clk
0:01:06.8]} 31. Qxf6 {[%clk 0:01:24.2]} 31... Bg7 {[%clk 0:01:05.8]} 0-1

[Event "*** Titled Tuesday Blitz"]
[Site "Chess.com"]
[Date "2020.05.12"]
[Round "4"]
[White "ThePatrick27"]
[Black "Sychev_Klementy"]
[Result "0-1"]
[WhiteElo "2528"]
[BlackElo "2852"]
[TimeControl "180+1"]
[EndTime "10:36:29 PDT"]
[Termination "Sychev_Klementy won by resignation"]

1. d4 {[%clk 0:03:00.9]} 1... Nf6 {[%clk 0:02:59.8]} 2. c4 {[%clk 0:03:01.3]}
2... g6 {[%clk 0:03:00.1]} 3. Nc3 {[%clk 0:03:00.9]} 3... d5 {[%clk 0:03:00]} 4.
cxd5 {[%clk 0:03:00.4]} 4... Nxd5 {[%clk 0:03:00.3]} 5. e4 {[%clk 0:03:01.1]}
5... Nxc3 {[%clk 0:02:59.5]} 6. bxc3 {[%clk 0:03:02]} 6... Bg7 {[%clk 0:03:00]}
7. Be3 {[%clk 0:03:02.5]} 7... c5 {[%clk 0:02:59.8]} 8. Nf3 {[%clk 0:03:02.2]}
8... Qa5 {[%clk 0:02:55.7]} 9. Qd2 {[%clk 0:03:01.7]} 9... Nc6 {[%clk
0:02:54.3]} 10. Rc1 {[%clk 0:02:59.5]} 10... cxd4 {[%clk 0:02:52.5]} 11. cxd4
{[%clk 0:03:00.4]} 11... Qxd2+ {[%clk 0:02:52.2]} 12. Kxd2 {[%clk 0:02:59.8]}
12... O-O {[%clk 0:02:52.5]} 13. d5 {[%clk 0:02:59.8]} 13... Rd8 {[%clk
0:02:51.2]} 14. Ke1 {[%clk 0:02:58.6]} 14... Nb4 {[%clk 0:02:50.2]} 15. Bc4
{[%clk 0:02:39.9]} 15... e6 {[%clk 0:02:38.7]} 16. dxe6 {[%clk 0:01:53.2]} 16...
Bxe6 {[%clk 0:02:37.2]} 17. a3 {[%clk 0:01:53.4]} 17... Nd3+ {[%clk 0:02:30.8]}
18. Bxd3 {[%clk 0:01:52.6]} 18... Rxd3 {[%clk 0:02:29.4]} 19. Ke2 {[%clk
0:01:46.5]} 19... Rxa3 {[%clk 0:02:23.6]} 20. Rc7 {[%clk 0:01:46.2]} 20... b5
{[%clk 0:02:12.8]} 21. Ng5 {[%clk 0:01:35.6]} 21... Bc4+ {[%clk 0:02:09.2]} 22.
Kf3 {[%clk 0:01:35.7]} 22... h6 {[%clk 0:01:47.2]} 23. Nh3 {[%clk 0:01:35.7]}
23... g5 {[%clk 0:01:43.7]} 24. Rd1 {[%clk 0:01:33.3]} 24... a5 {[%clk
0:01:32.5]} 25. g3 {[%clk 0:00:57.9]} 25... g4+ {[%clk 0:01:21.6]} 0-1

[Event "*** Titled Tuesday Blitz"]
[Site "Chess.com"]
[Date "2020.05.12"]
[Round "4"]
[White "Djager97"]
[Black "manitodeplomo"]
[Result "0-1"]
[WhiteElo "2411"]
[BlackElo "2609"]
[TimeControl "180+1"]
[EndTime "10:36:30 PDT"]
[Termination "manitodeplomo won by resignation"]

1. e4 {[%clk 0:03:00.9]} 1... c5 {[%clk 0:02:58.2]} 2. Nf3 {[%clk 0:03:00.4]}
2... e6 {[%clk 0:02:57.5]} 3. d4 {[%clk 0:03:00.5]} 3... cxd4 {[%clk 0:02:57.8]}
4. Nxd4 {[%clk 0:03:01.4]} 4... a6 {[%clk 0:02:57.2]} 5. Bd3 {[%clk 0:02:58.6]}
5... g6 {[%clk 0:02:55.8]} 6. O-O {[%clk 0:02:51.4]} 6... Bg7 {[%clk 0:02:55.8]}
7. Be3 {[%clk 0:02:44.7]} 7... Ne7 {[%clk 0:02:56.7]} 8. c4 {[%clk 0:02:42]}
8... O-O {[%clk 0:02:57.6]} 9. Nc3 {[%clk 0:02:40.8]} 9... d5 {[%clk 0:02:57.2]}
10. Rc1 {[%clk 0:01:57.9]} 10... e5 {[%clk 0:02:53.8]} 11. Nxd5 {[%clk
0:01:36.3]} 11... Nxd5 {[%clk 0:02:50.8]} 12. cxd5 {[%clk 0:01:34.9]} 12... exd4
{[%clk 0:02:50.9]} 13. Bf4 {[%clk 0:01:34.7]} 13... Nd7 {[%clk 0:02:45.9]} 14.
Bc7 {[%clk 0:01:20.6]} 14... Qe7 {[%clk 0:02:38.3]} 15. f4 {[%clk 0:01:20.1]}
15... Nf6 {[%clk 0:02:28.2]} 16. d6 {[%clk 0:01:13.6]} 16... Qe6 {[%clk
0:02:26.6]} 17. e5 {[%clk 0:01:10.5]} 17... Ng4 {[%clk 0:01:49.4]} 18. f5 {[%clk
0:00:51.9]} 18... Qxe5 {[%clk 0:01:48.8]} 19. Qxg4 {[%clk 0:00:51.1]} 19... Qe3+
{[%clk 0:01:48.3]} 20. Kh1 {[%clk 0:00:49.8]} 20... Qxd3 {[%clk 0:01:47.7]} 21.
Rcd1 {[%clk 0:00:39.7]} 21... Bxf5 {[%clk 0:01:45.4]} 22. Qh4 {[%clk 0:00:34.6]}
22... Qb5 {[%clk 0:01:37.8]} 0-1

[Event "*** Titled Tuesday Blitz"]
[Site "Chess.com"]
[Date "2020.05.12"]
[Round "4"]
[White "BigAl"]
[Black "FeketeBarika"]
[Result "1-0"]
[WhiteElo "2464"]
[BlackElo "2298"]
[TimeControl "180+1"]
[EndTime "10:36:32 PDT"]
[Termination "BigAl won by checkmate"]

1. e4 {[%clk 0:03:00.9]} 1... e6 {[%clk 0:02:32.2]} 2. d3 {[%clk 0:03:00.5]}
2... d5 {[%clk 0:02:21.1]} 3. Nd2 {[%clk 0:02:59.6]} 3... Ne7 {[%clk 0:02:18.1]}
4. Ngf3 {[%clk 0:02:58.2]} 4... c5 {[%clk 0:02:18.3]} 5. g3 {[%clk 0:02:55.7]}
5... g6 {[%clk 0:02:18.6]} 6. Bg2 {[%clk 0:02:55.2]} 6... Bg7 {[%clk 0:01:58.6]}
7. O-O {[%clk 0:02:56.1]} 7... Nbc6 {[%clk 0:01:32.5]} 8. exd5 {[%clk 0:02:57]}
8... Nxd5 {[%clk 0:01:26.3]} 9. Nb3 {[%clk 0:02:47.7]} 9... b6 {[%clk
0:01:21.1]} 10. d4 {[%clk 0:02:46.1]} 10... c4 {[%clk 0:01:04.3]} 11. Nbd2
{[%clk 0:02:44.2]} 11... b5 {[%clk 0:01:02.3]} 12. c3 {[%clk 0:02:43.3]} 12...
O-O {[%clk 0:00:54.9]} 13. Re1 {[%clk 0:02:43]} 13... Bb7 {[%clk 0:00:22.6]} 14.
Ne4 {[%clk 0:02:40.5]} 14... a5 {[%clk 0:00:22.5]} 15. Nc5 {[%clk 0:02:36]}
15... Ra7 {[%clk 0:00:22.4]} 16. Bg5 {[%clk 0:02:31.6]} 16... Qc7 {[%clk
0:00:19.3]} 17. Qd2 {[%clk 0:02:22.1]} 17... b4 {[%clk 0:00:18.5]} 18. Rac1
{[%clk 0:02:13.7]} 18... b3 {[%clk 0:00:10.7]} 19. a3 {[%clk 0:02:13.4]} 19...
a4 {[%clk 0:00:07.3]} 20. Bh6 {[%clk 0:02:12.5]} 20... Ba8 {[%clk 0:00:07.1]}
21. Bxg7 {[%clk 0:02:11.8]} 21... Kxg7 {[%clk 0:00:08]} 22. Rxe6 {[%clk
0:02:11.1]} 22... Nf6 {[%clk 0:00:07]} 23. Rxf6 {[%clk 0:02:03.8]} 23... Kxf6
{[%clk 0:00:06]} 24. Qh6 {[%clk 0:02:04.5]} 24... Ke7 {[%clk 0:00:04.8]} 25.
Re1+ {[%clk 0:02:01.6]} 25... Kd8 {[%clk 0:00:04.6]} 26. Qxf8# {[%clk
0:02:01.1]} 1-0